bitfinex-derivatives/quotes_BNBF0:USTF0_20250708
["timestamp","ask_amount","ask_price","bid_price","bid_amount"]
[1752008887561,1.69345379,658.71,658.02,2.05]
[1752008890969,1.69345379,658.72,658.02,2.05]
[1752008891169,1.69345379,658.71,658.02,2.05]
[1752008891371,1.69345379,658.72,658.02,2.05]
[1752008892274,1.69345379,658.71,658.02,2.05]
[1752008892573,1.69345379,658.72,658.02,2.05]
[1752008892768,1.69345379,658.71,658.02,2.05]
[1752008894777,0.26422787,659.15,658.04,2.27520185]
[1752008894778,1.69345379,658.7,658.04,2.27520185]
[1752008896578,1.69345379,658.69,658.06,2.27520185]
[1752008902180,1.69345379,658.68,658.06,2.27520185]
[1752008904278,1.69345379,658.68,658.07,2.27520185]
[1752008905883,1.69345379,658.68,658.06,2.27520185]
[1752008906986,1.69345379,658.68,658.07,2.27520185]
[1752008907887,1.69345379,658.77,658.02,2.05]
[1752008908085,1.69345379,658.71,658.02,2.05]
[1752008908286,1.69345379,658.68,658.02,2.05]
[1752008910385,1.69345379,658.69,658.02,2.05]
[1752008911386,1.69345379,658.68,658.02,2.05]
[1752008913487,1.69345379,658.67,658.02,2.05]
[1752008914289,1.69345379,658.66,658.02,2.05]
[1752008915792,1.69345379,658.65,658.02,2.05]
[1752008915992,1.69345379,658.66,658.02,2.05]
[1752008916293,0.26422787,659.15,658.02,2.05]
[1752008916294,1.69345379,658.65,658.02,2.05]
[1752008917294,1.69345379,658.64,658.02,2.05]
[1752008917891,1.69345379,658.59,658.02,2.05]
[1752008918095,1.69345379,658.58,658.02,2.05]
[1752008922699,1.69345379,658.59,658.02,2.05]
[1752008923599,1.69345379,658.58,658.02,2.05]
[1752008924901,1.69345379,658.58,657.96,2.27520185]
[1752008925095,1.69345379,658.57,657.96,2.27520185]
[1752008925399,1.69345379,658.58,657.96,2.27520185]
[1752008925796,1.69345379,658.57,657.97,2.27520185]
[1752008927197,1.69345379,658.57,657.96,2.27520185]
[1752008927497,1.69345379,658.58,657.96,2.27520185]
[1752008927900,1.69345379,658.57,657.97,2.27520185]
[1752008928303,1.69345379,658.65,657.88,0.26431919]
[1752008928497,1.69345379,658.65,657.98,1.864]
[1752008938113,1.69345379,658.6,657.98,1.864]
[1752008940206,1.69345379,658.59,657.98,1.864]
[1752008943915,1.69345379,658.59,657.98,2.12828707]
[1752008945215,2.26016839,658.72,657.98,2.12828707]
[1752008945416,1.69552258,658.59,657.98,2.12828707]
[1752008946517,1.69552258,658.58,657.98,2.12828707]
[1752008949314,1.69552258,658.57,657.98,4.40348892]
[1752008952626,1.69552258,658.56,657.99,2.27520185]
[1752008952825,1.69552258,658.56,657.98,4.40348892]
[1752008953325,1.69552258,658.56,657.99,2.27520185]
[1752008956836,1.69552258,658.58,657.98,2.12828707]
[1752008957634,1.69552258,658.58,657.98,0.26428707]
[1752008958236,1.69552258,658.57,657.98,0.26428707]
[1752008961441,1.69552258,658.57,657.99,1.597]
[1752008963141,1.69552258,658.54,657.99,3.87220185]
[1752008964139,1.69552258,658.54,658.0,2.27520185]
[1752008965244,1.69552258,658.53,658.0,2.27520185]
[1752008965444,1.69552258,658.53,658.01,2.27520185]
[1752008966643,1.69552258,658.53,657.99,1.597]
[1752008966644,1.69552258,658.52,658.04,2.27520185]
[1752008967242,1.69552258,658.5,658.05,2.27520185]
[1752008968246,1.69552258,658.5,658.06,2.27520185]
[1752008971245,1.69552258,658.49,658.06,2.27520185]
[1752008971444,1.69552258,658.5,658.05,2.27520185]
[1752008973051,1.69552258,658.49,658.06,2.27520185]
[1752008976849,1.69862914,658.49,658.06,2.27520185]
[1752008979052,1.69862914,658.51,658.03,2.27520185]
[1752008981352,1.69862914,658.5,658.04,2.27520185]
[1752008982249,1.69862914,658.5,658.05,2.27520185]
[1752008983750,1.69862914,658.51,658.03,2.27520185]
[1752008987758,1.69862914,658.51,658.02,2.27520185]
[1752008988959,1.69862914,658.5,658.05,2.27520185]
[1752008990159,1.69862914,658.5,658.04,2.27520185]
[1752008991354,1.69862914,658.5,658.05,1.944]
[1752008992760,1.69862914,658.51,658.05,1.944]
[1752008993259,1.69862914,658.5,658.05,1.944]
[1752008993661,1.69862914,658.5,658.06,2.27520185]
[1752008997862,1.69862914,658.5,658.05,1.944]
[1752008998062,1.69862914,658.5,658.05,4.21920185]
[1752009000365,1.69862914,658.51,658.05,1.944]
[1752009001765,1.69862914,658.5,658.05,4.21920185]
[1752009004266,1.69862914,658.5,658.05,1.944]
[1752009007377,1.69862914,658.5,658.05,4.21920185]
[1752009007773,1.69862914,658.5,658.06,2.27520185]
[1752009024492,2.26016839,658.61,658.06,2.27520185]
[1752009024691,1.69705077,658.5,658.06,2.27520185]
[1752009024891,1.69705077,658.51,658.05,4.21920185]
[1752009028192,1.69705077,658.5,658.05,4.21920185]
[1752009028697,1.69705077,658.5,658.06,2.27520185]
[1752009030800,1.69705077,658.5,658.05,1.944]
[1752009030801,1.69705077,658.52,658.05,1.944]
[1752009034606,1.69705077,658.51,658.05,1.944]
[1752009035003,1.69705077,658.53,658.05,1.944]
[1752009038806,2.26016839,658.66,658.05,1.944]
[1752009039007,1.69704748,658.53,658.05,1.944]
[1752009040616,1.69704748,658.52,658.05,1.944]
[1752009041414,1.69704748,658.52,658.02,2.27520185]
[1752009043914,1.69704748,658.52,658.03,2.333]
[1752009044915,1.69704748,658.5,658.06,2.27520185]
[1752009059125,1.69704748,658.51,658.03,4.60820185]
[1752009059325,1.69704748,658.51,658.04,2.27520185]
[1752009064630,1.69704748,658.51,658.03,4.60820185]
[1752009065228,2.26016839,658.63,658.03,4.60820185]
[1752009065528,1.69706866,658.51,658.03,4.60820185]
[1752009067633,1.69706866,658.51,658.04,2.27520185]
[1752009067929,1.69706866,658.51,658.03,4.60820185]
[1752009068935,1.69706866,658.5,658.06,2.27520185]
[1752009072535,2.26016839,658.61,658.06,2.27520185]
[1752009072737,1.69692067,658.5,658.06,2.27520185]
[1752009074637,1.69692067,658.5,658.07,2.363]
[1752009079038,1.69692067,658.51,658.07,2.363]
[1752009080640,1.69692067,658.52,658.07,2.363]
[1752009088943,1.69692067,658.5,658.07,2.363]
[1752009095652,1.69692067,658.57,658.07,2.363]
[1752009096851,1.69692067,658.56,658.07,2.363]
[1752009098252,1.69692067,658.57,658.07,2.363]
[1752009099751,1.69692067,658.57,657.98,0.26428707]
[1752009103159,1.69692067,658.57,657.99,2.354]
[1752009105559,1.69692067,658.54,657.99,2.354]
[1752009107861,1.69692067,658.57,657.99,2.354]
[1752009112561,1.69692067,658.56,657.99,2.354]
[1752009114062,1.69692067,658.56,657.98,0.26428707]
[1752009115861,1.69692067,658.55,657.98,0.26428707]
[1752009116663,1.69692067,658.55,657.99,1.899]
[1752009117661,1.69692067,658.5,658.06,2.27520185]
[1752009121664,1.69692067,658.5,657.99,1.899]
[1752009121665,1.69692067,658.51,658.04,2.27520185]
[1752009122365,1.69692067,658.51,658.03,2.27520185]
[1752009122963,1.69692067,658.51,658.04,2.27520185]
[1752009126371,1.69692067,658.5,658.06,2.27520185]
[1752009127370,1.69692067,658.51,658.04,2.27520185]
[1752009127771,1.69692067,658.51,658.05,2.27520185]
[1752009129073,1.69692067,658.52,658.02,2.27520185]
[1752009129276,1.69692067,658.52,658.01,2.27520185]
[1752009129676,1.69692067,658.54,657.99,1.899]
[1752009133776,2.26016839,658.69,657.99,1.899]
[1752009133970,1.69651378,658.54,657.99,1.899]
[1752009139278,1.69651378,658.53,657.99,1.899]
[1752009139477,1.69651378,658.51,658.05,2.27520185]
[1752009141478,1.69651378,658.51,658.04,2.27520185]
[1752009144177,1.69651378,658.51,658.04,2.53948691]
[1752009145680,1.69651378,658.51,658.05,2.27520185]
[1752009146181,1.69651378,658.5,658.06,2.27520185]
[1752009167193,1.69651378,658.5,658.05,2.27520185]
[1752009170296,1.69651378,658.5,658.06,2.27520185]
[1752009170499,1.69651378,658.54,658.04,0.26428506]
[1752009170900,1.69651378,658.55,658.04,0.26428506]
[1752009175304,1.69801552,658.55,658.04,0.26428506]
[1752009177206,1.69801552,658.54,658.04,0.26428506]
[1752009177805,1.69801566,658.54,658.04,0.26428506]
[1752009180302,1.69801566,658.51,658.04,0.26428506]
[1752009181006,1.69801566,658.5,658.06,2.27520185]
[1752009183509,1.69801566,658.51,658.04,0.26428506]
[1752009189013,1.69801566,658.52,658.04,0.26428506]
[1752009193517,1.69801566,658.51,658.04,2.53948691]
[1752009195913,1.69801566,658.51,658.04,0.26428506]
[1752009197019,1.69801402,658.51,658.04,0.26428506]
[1752009197319,1.69801402,658.51,658.04,2.53948691]
[1752009198618,1.69801402,658.52,658.04,0.26428506]
[1752009199115,1.69801402,658.53,658.04,0.26428506]
[1752009207228,1.69801402,658.55,658.04,0.26428506]
[1752009208428,1.69801402,658.54,658.04,0.26428506]
[1752009209229,1.69801402,658.53,658.04,0.26428506]
[1752009217133,1.69801402,658.5,658.06,2.27520185]
[1752009225338,1.69801402,658.61,658.04,0.26428506]
[1752009225539,1.69801402,658.6,658.04,0.26428506]
[1752009225736,1.69801402,658.61,658.04,0.26428506]
[1752009227240,1.69801402,658.58,658.04,0.26428506]
[1752009227434,1.69801402,658.49,658.04,0.26428506]
[1752009228338,1.69801402,658.51,658.04,0.26428506]
[1752009229445,1.69801402,658.5,658.04,0.26428506]
[1752009230347,1.69801402,658.51,658.04,0.26428506]
[1752009231749,1.69801402,658.5,658.04,0.26428506]
[1752009232244,1.69801402,658.51,658.04,0.26428506]
[1752009234152,1.69801402,658.5,658.04,0.26428506]
[1752009234650,1.69801402,658.5,658.05,2.342]
[1752009235249,1.69801402,658.47,658.05,2.342]
[1752009235654,1.69801402,658.46,658.05,2.342]
[1752009239652,1.69801402,658.47,658.05,2.342]
[1752009240253,1.69801402,658.54,658.05,2.342]
[1752009240857,1.69801402,658.55,658.05,2.342]
[1752009241456,1.69801402,658.52,658.05,2.342]
[1752009241853,1.69801402,658.5,658.05,2.342]
[1752009242056,1.69801402,658.42,658.05,2.342]
[1752009242357,1.69801402,658.4,658.05,2.342]
[1752009243459,1.69801402,658.41,658.05,2.342]
[1752009244559,1.69801402,658.36,658.05,2.342]
[1752009245261,1.69801402,658.35,658.05,2.342]
[1752009245458,1.69801402,658.36,658.05,2.342]
[1752009246358,1.69801402,658.37,658.05,2.342]
[1752009248257,1.69801402,658.38,658.05,2.342]
[1752009248458,1.69801402,658.39,658.05,2.342]
[1752009250564,1.69801402,658.38,658.05,2.342]
[1752009250866,1.69801402,658.39,658.05,2.342]
[1752009251863,1.69801402,658.4,658.05,2.342]
[1752009253768,1.69801402,658.39,658.05,2.342]
[1752009254368,1.69801402,658.4,658.05,2.342]
[1752009258067,1.69801402,658.39,658.05,2.342]
[1752009263075,1.69801402,658.4,658.05,2.342]
[1752009264774,1.69801402,658.39,657.94,0.26433726]
[1752009267376,1.69801402,658.37,657.94,0.26433726]
[1752009268073,1.69801402,658.37,657.95,1.781]
[1752009269775,1.69801402,658.35,657.95,1.781]
[1752009270075,1.69801402,658.34,657.95,1.781]
[1752009270275,1.69801402,658.35,657.95,1.781]
[1752009272780,1.69801402,658.34,657.95,1.781]
[1752009274482,1.69801402,658.33,657.95,1.781]
[1752009277185,1.69801402,658.32,657.95,1.781]
[1752009279487,1.69801402,658.31,657.95,1.781]
[1752009280587,1.69801402,658.33,657.95,1.781]
[1752009281287,1.69801402,658.32,657.95,1.781]
[1752009281484,1.69801402,658.33,657.95,1.781]
[1752009284093,1.69801402,658.32,657.95,1.781]
[1752009285092,1.69801402,658.26,657.95,1.781]
[1752009289693,1.69801402,658.25,657.95,1.781]
[1752009289993,1.69801402,658.26,657.95,1.781]
[1752009290192,1.69801402,658.25,657.95,1.781]
[1752009290493,0.26436638,658.51,657.95,1.781]
[1752009290494,1.69801402,658.24,657.95,1.781]
[1752009291094,1.69801402,658.25,657.95,1.781]
[1752009293095,1.69801402,658.24,657.95,1.781]
[1752009293995,1.69801402,658.25,657.95,1.781]
[1752009294996,1.69801402,658.24,657.74,0.26440956]
[1752009296095,1.69801402,658.23,657.74,0.26440956]
[1752009297192,1.69801402,658.22,657.74,0.26440956]
[1752009298195,1.69801402,658.21,657.75,1.614]
[1752009299094,1.69801402,658.2,657.75,1.614]
[1752009299695,1.69801402,658.21,657.75,1.614]
[1752009300999,1.69801402,658.19,657.75,1.614]
[1752009302297,1.69801402,658.18,657.75,1.614]
[1752009308603,1.69801402,658.17,657.75,1.614]
[1752009314810,1.69801402,658.24,657.75,1.614]
[1752009315011,1.69801402,658.25,657.75,1.614]
[1752009316206,1.69801402,658.18,657.75,1.614]
[1752009318207,1.69801402,658.19,657.75,1.614]
[1752009318411,1.69801402,658.18,657.75,1.614]
[1752009324813,1.69801402,658.11,657.75,1.614]
[1752009326816,1.69801402,658.1,657.75,1.614]
[1752009329013,1.69801402,658.23,657.75,1.614]
[1752009330017,1.69801402,658.19,657.75,1.614]
[1752009330714,1.69801402,658.16,657.75,1.614]
[1752009331117,1.69801402,658.11,657.6,0.26447989]
[1752009332320,1.69801402,658.12,657.6,0.26447989]
[1752009332521,1.69801402,658.11,657.6,0.26447989]
[1752009333316,1.69801402,658.12,657.6,0.26447989]
[1752009334224,1.69801402,658.12,657.61,2.182]
[1752009335324,1.69801402,658.11,657.61,2.182]
[1752009338926,1.69801402,658.1,657.61,2.182]
[1752009339928,1.69801402,658.07,657.61,2.182]
[1752009343227,1.69801402,658.06,657.61,2.182]
[1752009345027,1.69801402,658.05,657.61,2.182]
[1752009346327,1.69801402,658.06,657.61,2.182]
[1752009347233,1.69801402,658.05,657.61,2.182]
[1752009354636,1.69801402,658.06,657.61,2.182]
[1752009355141,1.69801402,658.07,657.61,2.182]
[1752009356337,1.69801402,658.06,657.61,2.182]
[1752009357041,1.69801402,658.07,657.61,2.182]
[1752009357339,1.69801402,658.06,657.61,2.182]
[1752009360540,1.69801402,658.07,657.61,2.182]
[1752009360936,1.69801402,658.06,657.61,2.182]
[1752009364543,1.69801402,658.05,657.61,2.182]
[1752009365343,1.69801402,658.04,657.61,2.182]
[1752009368344,1.69801402,658.03,657.61,2.182]
[1752009370648,1.69801402,658.02,657.61,2.182]
[1752009372447,1.69801402,658.01,657.61,2.182]
[1752009374349,1.69801402,658.0,657.61,2.182]
[1752009377155,1.69801402,657.99,657.61,2.182]
[1752009378558,1.69801402,658.04,657.61,2.182]
[1752009379655,1.69801402,658.09,657.61,2.182]
[1752009381660,1.69801402,658.18,657.61,2.182]
[1752009383262,1.69801402,658.18,657.6,0.26447989]
[1752009384161,1.69801402,658.19,657.6,0.26447989]
[1752009385460,1.69801402,658.18,657.6,0.26447989]
[1752009385866,1.69801402,658.18,657.61,2.461]
[1752009388467,1.69801402,658.16,657.61,2.461]
[1752009389670,1.69801402,658.13,657.61,2.461]
[1752009394565,1.69801402,658.12,657.61,2.461]
[1752009395367,0.26436638,658.51,657.61,2.461]
[1752009395368,1.69801402,658.09,657.61,2.461]
[1752009396071,1.69801402,658.1,657.61,2.461]
[1752009398274,1.69801402,658.11,657.61,2.461]
[1752009398573,1.69801402,658.1,657.61,2.461]
[1752009399369,1.69801402,658.11,657.61,2.461]
[1752009399971,1.69801402,658.1,657.61,2.461]
[1752009400270,1.69801402,658.11,657.61,2.461]
[1752009400473,1.69801402,658.1,657.61,2.461]
[1752009402274,1.69801402,658.11,657.61,2.461]
[1752009402472,1.69801402,658.1,657.61,2.461]
[1752009403274,1.69801402,658.11,657.61,2.461]
[1752009405978,1.69801402,658.1,657.61,2.461]
[1752009406479,1.69801402,658.09,657.61,2.461]
[1752009408678,1.69801402,658.1,657.61,2.461]
[1752009413880,1.69801402,658.1,657.6,0.26447989]
[1752009416786,1.69801402,658.14,657.6,0.26447989]
[1752009417089,1.69801402,658.17,657.61,2.429]
[1752009420791,1.69801402,658.22,657.61,2.429]
[1752009421189,1.69801402,658.27,657.61,2.429]
[1752009421385,1.69801402,658.26,657.61,2.429]
[1752009421790,1.69801402,658.23,657.61,2.429]
[1752009421990,1.69801402,658.33,657.61,2.429]
[1752009422391,1.69801402,658.34,657.61,2.429]
[1752009423590,3.24964999,658.5,657.61,2.429]
[1752009423591,1.69801402,658.33,657.61,2.429]
[1752009424389,1.69801402,658.34,657.61,2.429]
[1752009426603,1.69801402,658.35,657.61,2.429]
[1752009428092,1.69801402,658.33,657.61,2.429]
[1752009429199,1.69801402,658.3,657.63,2.27520185]
[1752009429402,1.69801402,658.31,657.62,2.27520185]
[1752009430599,1.69801402,658.32,657.61,4.70420185]
[1752009431103,3.39025259,658.55,657.61,4.70420185]
[1752009431104,1.69801402,658.31,657.61,4.70420185]
[1752009431297,1.69801402,658.31,657.62,2.27520185]
[1752009431601,1.69801402,658.31,657.63,2.27520185]
[1752009433204,1.69801402,658.31,657.67,0.2644186]
[1752009435205,1.69801402,658.33,657.67,0.2644186]
[1752009435405,1.69801402,658.34,657.67,0.2644186]
[1752009436207,1.69801402,658.33,657.67,0.2644186]
[1752009436402,1.69801402,658.34,657.67,0.2644186]
[1752009437209,1.69801402,658.33,657.67,0.2644186]
[1752009437409,1.69801402,658.34,657.67,0.2644186]
[1752009438211,1.69801402,658.33,657.67,0.2644186]
[1752009438612,1.69801402,658.34,657.67,0.2644186]
[1752009439112,1.69801402,658.32,657.67,0.2644186]
[1752009439912,1.69801402,658.29,657.67,0.2644186]
[1752009440310,1.69801402,658.21,657.67,0.2644186]
[1752009441213,1.69801402,658.2,657.67,0.2644186]
[1752009447917,1.69801402,658.19,657.67,0.2644186]
[1752009448117,1.69801402,658.14,657.67,0.2644186]
[1752009449918,1.69801402,658.14,657.68,1.957]
[1752009450120,1.69801402,658.13,657.68,1.957]
[1752009452220,1.69801402,658.14,657.68,1.957]
[1752009457824,1.69801402,658.13,657.68,1.957]
[1752009458219,1.69801402,658.11,657.68,1.957]
[1752009462527,1.69172682,658.11,657.68,1.957]
[1752009464224,1.69172682,658.12,657.68,1.957]
[1752009465428,1.69172682,658.11,657.68,1.957]
[1752009467125,1.69172682,658.12,657.68,1.957]
[1752009468326,2.26016839,658.23,657.68,1.957]
[1752009468530,1.69150795,658.12,657.68,1.957]
[1752009485340,1.69150795,658.11,657.68,1.957]
[1752009488546,1.69150795,658.14,657.68,1.957]
[1752009489349,1.69150795,658.13,657.68,1.957]
[1752009490249,1.69150795,658.12,657.68,1.957]
[1752009490447,1.69150795,658.15,657.68,1.957]
[1752009491450,1.69150795,658.14,657.68,1.957]
[1752009493351,1.69150795,658.13,657.68,1.957]
[1752009495351,1.69150795,658.12,657.68,1.957]
[1752009496354,1.69150795,658.11,657.68,1.957]
[1752009497450,1.69150795,658.1,657.68,1.957]
[1752009498451,1.69150795,658.07,657.68,1.957]
[1752009499352,1.69150795,658.05,657.68,1.957]
[1752009500354,1.69150795,658.03,657.68,1.957]
[1752009501255,1.69150795,658.02,657.68,1.957]
[1752009501961,1.69150795,658.02,657.67,0.2644186]
[1752009505362,1.69150795,658.01,657.67,0.2644186]
[1752009507361,1.69150795,658.0,657.67,0.2644186]
[1752009519168,1.69150795,658.06,657.67,0.2644186]
[1752009527378,1.69150795,658.07,657.67,0.2644186]
[1752009528983,1.69150795,658.04,657.67,0.2644186]
[1752009534489,1.69150795,658.04,657.68,1.671]
[1752009537292,1.69150795,658.03,657.68,1.671]
[1752009541497,1.69150795,658.02,657.68,1.671]
[1752009543198,1.69150795,658.04,657.68,1.671]
[1752009543396,0.2644186,658.49,657.68,1.671]
[1752009543397,1.69150795,658.07,657.68,1.671]
[1752009544399,1.69150795,658.06,657.68,1.671]
[1752009553214,1.69150795,658.04,657.68,1.671]
[1752009553417,1.69150795,658.01,657.68,1.671]
[1752009555220,1.69150795,658.0,657.68,1.671]
[1752009556122,1.69150795,658.04,657.68,1.671]
[1752009556317,1.69150795,658.1,657.68,1.671]
[1752009556520,1.69150795,658.0,657.68,1.671]
[1752009556719,1.69150795,658.06,657.68,1.671]
[1752009556920,1.69150795,658.05,657.68,1.671]
[1752009557420,1.69150795,658.06,657.68,1.671]
[1752009558424,1.69150795,658.07,657.68,1.671]
[1752009561422,1.69150795,658.08,657.68,1.671]
[1752009563026,1.69150795,658.1,657.68,1.671]
[1752009570426,1.69150795,658.11,657.68,1.671]
[1752009573031,1.69150795,658.09,657.68,1.671]
[1752009577026,1.69150795,658.1,657.68,1.671]
[1752009580637,1.69150795,658.1,657.67,0.2644186]
[1752009581337,1.69150795,658.11,657.39,2.27520185]
[1752009581537,1.69150795,658.05,657.54,0.26451709]
[1752009583139,1.69150795,658.04,657.54,0.26451709]
[1752009583340,1.69150795,658.0,657.54,0.26451709]
[1752009583635,1.69150795,658.0,657.55,2.048]
[1752009585335,1.69150795,658.01,657.55,2.048]
[1752009586942,1.69150795,658.0,657.55,2.048]
[1752009587336,1.69150795,658.01,657.55,2.048]
[1752009589842,1.69150795,658.02,657.55,2.048]
[1752009591343,1.69150795,658.01,657.55,2.048]
[1752009596744,1.69150795,658.02,657.55,2.048]
[1752009599248,1.69150795,658.03,657.55,2.048]
[1752009599643,1.69150795,658.02,657.55,2.048]
[1752009600848,1.69150795,658.04,657.55,2.048]
[1752009601049,1.69150795,658.03,657.55,2.048]
[1752009601650,2.26016839,658.18,657.55,2.048]
[1752009601853,1.69439879,658.03,657.55,2.048]
[1752009606252,1.69439879,658.04,657.55,2.048]
[1752009606547,1.69439879,658.03,657.55,2.048]
[1752009607552,2.26016839,658.17,657.55,2.048]
[1752009607752,1.69398016,658.03,657.55,2.048]
[1752009608348,1.69398016,658.04,657.55,2.048]
[1752009610853,1.69398016,658.03,657.55,2.048]
[1752009614056,1.69398016,658.04,657.55,2.048]
[1752009615357,1.69398016,658.05,657.55,2.048]
[1752009615559,1.69398016,658.04,657.55,2.048]
[1752009616355,1.69398016,658.05,657.55,2.048]
[1752009616660,1.69398016,658.04,657.55,2.048]
[1752009618057,1.69398016,658.03,657.55,2.048]
[1752009622260,1.69398016,658.02,657.55,2.048]
[1752009622960,1.69398016,658.03,657.55,2.048]
[1752009623164,1.69398016,658.02,657.55,2.048]
[1752009623966,1.69398016,658.01,657.55,2.048]
[1752009624162,1.69398016,658.0,657.55,2.048]
[1752009624566,1.69398016,657.99,657.55,2.048]
[1752009624767,1.69398016,658.0,657.55,2.048]
[1752009625364,0.2644186,658.49,657.55,2.048]
[1752009625365,1.69398016,657.99,657.55,2.048]
[1752009625962,1.69398016,658.03,657.55,2.048]
[1752009626368,1.69398016,658.02,657.55,2.048]
[1752009628274,1.69398016,658.01,657.55,2.048]
[1752009631271,1.69398016,658.0,657.55,2.048]
[1752009633271,1.69398016,657.99,657.55,2.048]
[1752009635979,1.69398016,657.96,657.55,2.048]
[1752009636377,1.69398016,657.95,657.55,2.048]
[1752009636675,1.69398016,657.95,657.46,0.26452814]
[1752009638980,1.69398016,657.94,657.46,0.26452814]
[1752009639781,1.69398016,657.94,657.47,2.011]
[1752009640282,1.69398016,657.93,657.47,2.011]
[1752009640582,2.26016839,658.05,657.47,2.011]
[1752009640882,1.69659343,657.93,657.47,2.011]
[1752009643386,1.69659343,657.92,657.47,2.011]
[1752009645888,1.69659343,657.91,657.47,2.011]
[1752009646286,1.69659343,657.92,657.47,2.011]
[1752009647887,1.6973329,657.92,657.47,2.011]
[1752009648589,1.6973329,657.94,657.47,2.011]
[1752009651288,1.6973329,657.93,657.47,2.011]
[1752009654790,2.26016839,658.06,657.47,2.011]
[1752009654990,1.69736874,657.93,657.47,2.011]
[1752009658498,1.69736874,657.92,657.47,2.011]
[1752009659194,1.69736874,657.93,657.47,2.011]
[1752009660398,1.69736874,657.92,657.47,2.011]
[1752009665701,1.69736874,657.91,657.47,2.011]
[1752009666999,1.69736874,657.92,657.47,2.011]
[1752009667203,1.69736874,657.93,657.47,2.011]
[1752009669200,1.69736874,657.92,657.47,2.011]
[1752009675804,1.69736874,657.92,657.46,0.26452814]
[1752009677011,1.69736874,657.9,657.46,0.26452814]
[1752009677311,1.69736874,657.97,657.46,0.26452814]
[1752009677809,0.26453015,658.16,657.46,0.26452814]
[1752009677810,1.69736874,657.99,657.46,0.26452814]
[1752009679209,1.69736874,657.99,657.47,2.343]
[1752009687220,1.69736874,657.97,657.47,2.343]
[1752009687617,1.69736874,657.96,657.47,2.343]
[1752009687819,1.69736874,657.94,657.47,2.343]
[1752009690322,1.69736874,657.93,657.47,2.343]
[1752009691624,1.69736874,657.94,657.47,2.343]
[1752009692123,1.69736874,657.93,657.47,2.343]
[1752009695023,1.69736874,657.94,657.47,2.343]
[1752009695227,1.69736874,657.93,657.47,2.343]
[1752009698826,1.69736874,657.92,657.47,2.343]
[1752009699228,1.69736874,657.93,657.47,2.343]
[1752009700431,1.69736874,657.91,657.47,2.343]
[1752009702332,1.69736874,657.91,657.46,0.26452814]
[1752009702632,1.69736874,657.89,657.46,0.26452814]
[1752009705730,1.69736874,657.89,657.47,2.009]
[1752009707437,2.26016839,658.0,657.47,2.009]
[1752009707438,1.69736874,657.9,657.47,2.009]
[1752009714141,1.69736874,657.91,657.47,2.009]
[1752009715942,1.69736874,657.92,657.47,2.009]
[1752009717438,1.69778663,657.92,657.47,2.009]
[1752009718738,0.26453015,658.16,657.47,2.009]
[1752009718739,1.69778663,657.93,657.47,2.009]
[1752009725753,1.69778663,657.92,657.47,2.009]
[1752009728653,0.26453015,658.16,657.47,2.009]
[1752009728654,1.69778663,657.9,657.47,2.009]
[1752009728955,2.26016839,658.0,657.47,2.009]
[1752009729152,1.69779916,657.9,657.47,2.009]
[1752009730456,1.69779916,657.99,657.47,2.009]
[1752009730652,1.69779916,657.96,657.47,2.009]
[1752009730852,1.69779916,657.92,657.47,2.009]
[1752009731053,1.69779916,657.9,657.47,2.009]
[1752009731556,1.69779916,657.91,657.47,2.009]
[1752009732255,1.69779916,657.92,657.47,2.009]
[1752009732759,1.69779916,657.91,657.47,2.009]
[1752009734254,1.69779916,657.92,657.47,2.009]
[1752009736060,1.69779916,657.91,657.47,2.009]
[1752009740767,1.69779916,657.87,657.47,2.009]
[1752009741267,1.69779916,657.88,657.47,2.009]
[1752009742565,1.69779916,657.87,657.47,2.009]
[1752009743867,1.69779916,657.88,657.47,2.009]
[1752009746265,0.26453015,658.16,657.47,2.009]
[1752009746266,1.69779916,657.87,657.47,2.009]
[1752009753475,2.26016839,657.97,657.47,2.009]
[1752009753770,1.69405813,657.87,657.47,2.009]
[1752009759781,1.69405813,657.87,657.37,0.2645573]
[1752009767583,1.69405813,657.86,657.37,0.2645573]
[1752009774289,1.69405813,657.85,657.37,0.2645573]
[1752009777689,1.69405813,657.92,657.37,0.2645573]